fUST/lending_fUST_20250725
["ID","MTS","AMOUNT","RATE_DAILY","PERIOD"]
[374664232,1753404651829,-460.0,0.00018544,2]
[374664233,1753404651838,-460.0,0.00018544,2]
[374664234,1753404651848,-486.56516799,0.00018544,2]
[374664235,1753404651858,-460.0,0.00018544,2]
[374664236,1753404651867,-460.0,0.00018544,2]
[374664237,1753404651878,-460.0,0.00018544,2]
[374664238,1753404651888,-460.0,0.00018544,2]
[374664239,1753404651897,-793.28,0.00018545,2]
[374664240,1753404651907,-760.23,0.00018545,2]
[374664241,1753404651917,-460.0,0.00018545,2]
[374664242,1753404651927,-460.0,0.00018545,2]
[374664243,1753404651940,-460.0,0.00018545,2]
[374664244,1753404652070,-460.0,0.00018545,2]
[374664245,1753404652080,-460.0,0.00018545,2]
[374664246,1753404652090,-460.0,0.00018545,2]
[374664247,1753404652099,-460.0,0.00018545,2]
[374664248,1753404652109,-967.47,0.00018545,2]
[374664249,1753404652118,-1315.09,0.00018545,2]
[374664250,1753404652128,-460.0,0.00018545,2]
[374664251,1753404652138,-460.0,0.00018545,2]
[374664252,1753404652148,-460.0,0.00018545,2]
[374664253,1753404652158,-1001.06,0.00018545,2]
[374664254,1753404652167,-1087.93,0.00018545,2]
[374664255,1753404652177,-1406.67,0.00018545,2]
[374664256,1753404652187,-460.0,0.00018545,2]
[374664257,1753404652196,-463.30977336,0.00018545,2]
[374664258,1753404652206,-460.0,0.00018545,2]
[374664259,1753404652215,-389.46810619,0.00018547,2]
[374664260,1753404652225,-365.20195181,0.00018547,2]
[374664261,1753404652234,-460.0,0.00018547,2]
[374664262,1753404652244,-460.0,0.00018547,2]
[374664263,1753404652253,-359.59110591,0.00018547,2]
[374664264,1753404652263,-460.0,0.00018547,2]
[374664265,1753404652272,-460.0,0.00018547,2]
[374664266,1753404652282,-460.0,0.00018547,2]
[374664267,1753404652291,-460.0,0.00018547,2]
[374664268,1753404652301,-460.0,0.00018547,2]
[374664269,1753404652310,-460.0,0.00018547,2]
[374664270,1753404652319,-460.0,0.00018547,2]
[374664271,1753404652329,-460.0,0.00018547,2]
[374664272,1753404652338,-460.0,0.00018547,2]
[374664273,1753404652347,-460.0,0.00018547,2]
[374664274,1753404652357,-460.0,0.00018547,2]
[374664275,1753404652366,-629.7,0.00018547,2]
[374664276,1753404652376,-460.0,0.00018547,2]
[374664277,1753404652385,-689.38,0.00018547,2]
[374664278,1753404652395,-460.0,0.00018547,2]
[374664279,1753404652405,-576.92,0.00018547,2]
[374664280,1753404652414,-460.0,0.00018547,2]
[374664281,1753404652423,-460.0,0.00018547,2]
[374664282,1753404652433,-570.09,0.00018547,2]
[374664283,1753404652443,-460.0,0.00018547,2]
[374664284,1753404652453,-467.63091635,0.00018547,2]
[374664285,1753404652463,-465.24392836,0.00018547,2]
[374664286,1753404652472,-460.0,0.00018547,2]
[374664287,1753404652481,-612.95,0.00018547,2]
[374664288,1753404652491,-455.53656338,0.00018547,2]
[374664289,1753404652500,-865.33,0.00018547,2]
[374664290,1753404652510,-460.0,0.00018547,2]
[374664291,1753404652519,-460.0,0.00018547,2]
[374664292,1753404652529,-460.0,0.00018547,2]
[374664293,1753404652540,-520.64,0.00018547,2]
[374664294,1753404652550,-460.0,0.00018547,2]
[374664295,1753404652560,-460.0,0.00018547,2]
[374664296,1753404652569,-460.0,0.00018547,2]
[374664297,1753404652579,-460.0,0.00018547,2]
[374664298,1753404652589,-460.0,0.00018547,2]
[374664299,1753404652599,-1299.12,0.00018547,2]
[374664300,1753404652609,-923.5,0.00018547,2]
[374664301,1753404652619,-169.40151226,0.00018547,2]
[374664302,1753404652631,-460.0,0.00018547,2]
[374664303,1753404652641,-460.0,0.00018547,2]
[374664304,1753404652650,-557.84,0.00018547,2]
[374664305,1753404652660,-1065.37,0.00018547,2]
[374664306,1753404652669,-460.0,0.00018547,2]
[374664307,1753404652678,-460.0,0.00018547,2]
[374664308,1753404652688,-460.0,0.00018547,2]
[374664309,1753404652698,-235.89486858,0.00018547,2]
[374664310,1753404652708,-594.76,0.00018547,2]
[374664311,1753404652718,-463.45108865,0.00018547,2]
[374664312,1753404652727,-460.0,0.00018547,2]
[374664313,1753404652738,-460.0,0.00018547,2]
[374664314,1753404652748,-460.0,0.00018547,2]
[374664315,1753404652758,-460.0,0.00018547,2]
[374664316,1753404652767,-460.0,0.00018547,2]
[374664317,1753404652776,-460.0,0.00018547,2]
[374664318,1753404652786,-729.45,0.00018547,2]
[374664319,1753404652796,-460.0,0.00018547,2]
[374664320,1753404652805,-462.81519732,0.00018547,2]
[374664321,1753404652815,-460.00000003,0.00018547,2]
[374664322,1753404652824,-1290.64,0.00018547,2]
[374664323,1753404652834,-460.0,0.00018547,2]
[374664324,1753404652844,-460.0,0.00018547,2]
[374664325,1753404652853,-460.0,0.00018547,2]
[374664326,1753404652863,-460.0,0.00018547,2]
[374664327,1753404652873,-460.0,0.00018547,2]
[374664328,1753404652882,-460.0,0.00018547,2]
[374664329,1753404652892,-604.84,0.00018547,2]
[374664330,1753404652902,-460.0,0.00018547,2]
[374664331,1753404652911,-539.89080388,0.00018547,2]
[374664332,1753404652921,-460.0,0.00018547,2]
[374664333,1753404652931,-587.44,0.00018547,2]
[374664334,1753404652940,-467.25968795,0.00018547,2]
[374664335,1753404652949,-460.0,0.00018547,2]
[374664336,1753404652959,-560.63,0.00018547,2]
[374664337,1753404652968,-628.41,0.00018547,2]
[374664338,1753404652977,-558.25,0.00018547,2]
[374664339,1753404652987,-460.0,0.00018547,2]
[374664340,1753404652996,-1376.25,0.00018547,2]
[374664341,1753404653006,-1187.67,0.00018547,2]
[374664342,1753404653016,-730.77,0.00018547,2]
[374664343,1753404653026,-460.0,0.00018547,2]
[374664344,1753404653037,-460.0,0.00018547,2]
[374664345,1753404653046,-460.0,0.00018547,2]
[374664346,1753404653055,-500.0,0.00018573,2]
[374664347,1753404653065,-500.0,0.00018573,2]
[374664348,1753404653075,-500.0,0.00018573,2]
[374664349,1753404653085,-500.0,0.00018573,2]
[374664350,1753404653094,-500.0,0.00018573,2]
[374664351,1753404653103,-158.28910969,0.00018573,2]
[374664352,1753404653113,-500.0,0.00018573,2]
[374664353,1753404653122,-500.0,0.00018573,2]
[374664354,1753404653132,-500.0,0.00018573,2]
[374664355,1753404653141,-502.10753571,0.00018573,2]
[374664356,1753404653151,-500.0,0.00018573,2]
[374664357,1753404653160,-500.0,0.00018573,2]
[374664358,1753404653170,-384.59957403,0.00018573,2]
[374664359,1753404653179,-500.0,0.00018573,2]
[374664360,1753404653188,-500.0,0.00018573,2]
[374664361,1753404653198,-501.17624404,0.00018573,2]
[374664362,1753404653208,-300.35007006,0.00018573,2]
[374664363,1753404653218,-500.0,0.00018573,2]
[374664364,1753404653228,-500.0,0.00018573,2]
[374664365,1753404653237,-500.0,0.00018573,2]
[374664366,1753404653246,-4838.6517861,0.0001859,2]
[374664367,1753404653256,-437.78817027,0.00018591,2]
[374664368,1753404653266,-151.0,0.000186,2]
[374664369,1753404653276,-4116.46381659,0.00018608,2]
[374664370,1753404653285,-460.0,0.00018664,2]
[374664371,1753404653295,-460.0,0.00018664,2]
[374664372,1753404653304,-460.0,0.00018664,2]
[374664373,1753404653314,-460.0,0.00018664,2]
[374664374,1753404653324,-460.0,0.00018664,2]
[374664375,1753404653334,-460.0,0.00018664,2]
[374664376,1753404653344,-460.0,0.00018664,2]
[374664377,1753404653353,-460.0,0.00018664,2]
[374664378,1753404653363,-700.29,0.00018664,2]
[374664379,1753404653372,-1384.34,0.00018664,2]
[374664380,1753404653381,-1404.51,0.00018664,2]
[374664381,1753404653391,-1109.55,0.00018664,2]
[374664382,1753404653401,-465.49,0.00018664,2]
[374664383,1753404653410,-530.19,0.00018664,2]
[374664384,1753404653419,-460.0,0.00018664,2]
[374664385,1753404653429,-1001.67,0.00018664,2]
[374664386,1753404653438,-853.47,0.00018664,2]
[374664387,1753404653448,-540.57,0.00018664,2]
[374664388,1753404653458,-1280.81,0.00018664,2]
[374664389,1753404653467,-5769.14,0.00018664,2]
[374664390,1753404653477,-1347.45,0.00018664,2]
[374664391,1753404653487,-1208.92223281,0.00018669,2]
[374664392,1753404653497,-460.0,0.00018688,2]
[374664393,1753404653506,-460.0,0.00018688,2]
[374664394,1753404653516,-460.0,0.00018688,2]
[374664395,1753404653525,-460.0,0.00018688,2]
[374664396,1753404653535,-460.0,0.00018688,2]
[374664397,1753404653546,-460.0,0.00018688,2]
[374664398,1753404653556,-460.0,0.00018688,2]
[374664399,1753404653565,-460.0,0.00018715,2]
[374664400,1753404653575,-460.0,0.00018715,2]
[374664401,1753404653584,-460.0,0.00018715,2]
[374664402,1753404653594,-460.0,0.00018715,2]
[374664403,1753404653603,-800.56,0.00018715,2]
[374664404,1753404653613,-460.0,0.00018715,2]
[374664405,1753404653622,-460.0,0.00018715,2]
[374664406,1753404653636,-460.0,0.00018715,2]
[374664407,1753404653646,-163.18824574,0.00018715,2]
[374664408,1753404653655,-460.0,0.00018715,2]
[374664409,1753404653665,-460.0,0.00018715,2]
[374664410,1753404653674,-460.0,0.00018715,2]
[374664411,1753404653684,-387.18570573,0.00018715,2]
[374664412,1753404653694,-460.0,0.00018715,2]
[374664413,1753404653704,-467.61987647,0.00018715,2]
[374664414,1753404653714,-460.0,0.00018715,2]
[374664415,1753404653723,-460.0,0.00018715,2]
[374664416,1753404653733,-460.0,0.00018715,2]
[374664417,1753404653743,-460.0,0.00018715,2]
[374664418,1753404653752,-460.0,0.00018715,2]
[374664419,1753404653762,-4838.6517861,0.00018728,2]
[374664420,1753404653772,-500.0,0.00018773,2]
[374664421,1753404653782,-500.0,0.00018773,2]
[374664422,1753404653792,-460.0,0.00018781,2]
[374664423,1753404653802,-460.0,0.00018781,2]
[374664424,1753404653811,-460.0,0.00018781,2]
[374664425,1753404653821,-460.0,0.00018781,2]
[374664426,1753404653831,-460.0,0.00018781,2]
[374664427,1753404653841,-460.0,0.00018781,2]
[374664428,1753404653851,-460.0,0.00018781,2]
[374664429,1753404653860,-817.21,0.00018781,2]
[374664430,1753404653869,-538.7,0.00018781,2]
[374664431,1753404653879,-725.04,0.00018781,2]
[374664432,1753404653888,-3616.54,0.00018781,2]
[374664433,1753404653898,-2208.85,0.00018781,2]
[374664434,1753404653908,-515.93,0.00018781,2]
[374664435,1753404653918,-1182.8,0.00018781,2]
[374664436,1753404653927,-2656.18,0.00018782,2]
[374664437,1753404653936,-4422.04,0.00018782,2]
[374664438,1753404653945,-3458.58,0.00018782,2]
[374664439,1753404653955,-460.0,0.00018782,2]
[374664440,1753404653965,-460.0,0.00018785,2]
[374664441,1753404653975,-460.0,0.00018785,2]
[374664442,1753404653984,-460.0,0.00018785,2]
[374664443,1753404653994,-502.34841197,0.00018785,2]
[374664444,1753404654003,-460.0,0.00018785,2]
[374664445,1753404654013,-460.0,0.00018785,2]
[374664446,1753404654023,-460.0,0.00018785,2]
[374664447,1753404654032,-460.0,0.00018785,2]
[374664448,1753404654043,-460.0,0.00018785,2]
[374664449,1753404654053,-2293.65,0.00018785,2]
[374664450,1753404654062,-2473.65,0.00018785,2]
[374664451,1753404654072,-460.0,0.00018785,2]
[374664452,1753404654081,-3404.83,0.00018785,2]
[374664453,1753404654090,-460.0,0.00018785,2]
[374664454,1753404654100,-1066.73,0.00018785,2]
[374664455,1753404654110,-463.59684902,0.00018785,2]
[374664456,1753404654119,-460.0,0.00018786,2]
[374664457,1753404654130,-460.0,0.00018786,2]
[374664458,1753404654139,-465.07418091,0.00018786,2]
[374664459,1753404654149,-460.0,0.00018786,2]
[374664460,1753404654158,-460.69015657,0.00018786,2]
[374664461,1753404654167,-460.0,0.00018786,2]
[374664462,1753404654177,-460.0,0.00018786,2]
[374664463,1753404654187,-341.06620171,0.00018786,2]
[374664464,1753404654196,-460.0,0.00018786,2]
[374664465,1753404654206,-460.0,0.00018786,2]
[374664466,1753404654215,-460.0,0.00018786,2]
[374664467,1753404654225,-460.0,0.00018786,2]
[374664468,1753404654235,-460.0,0.00018786,2]
[374664469,1753404654245,-354.395251,0.00018786,2]
[374664470,1753404654359,-460.0,0.00018786,2]
[374664471,1753404654370,-460.0,0.00018786,2]
[374664472,1753404654381,-1039.36,0.00018786,2]
[374664473,1753404654390,-619.46,0.00018786,2]
[374664474,1753404654400,-460.0,0.00018786,2]
[374664475,1753404654409,-460.0,0.00018786,2]
[374664476,1753404654419,-858.12,0.00018786,2]
[374664477,1753404654428,-460.0,0.00018786,2]
[374664478,1753404654438,-460.0,0.00018786,2]
[374664479,1753404654448,-460.0,0.00018786,2]
[374664480,1753404654457,-460.0,0.00018786,2]
[374664481,1753404654467,-460.0,0.00018786,2]
[374664482,1753404654477,-478.57,0.00018786,2]
[374664483,1753404654486,-1582.69,0.00018786,2]
[374664484,1753404654498,-636.36,0.00018786,2]
[374664485,1753404654507,-681.19,0.00018786,2]
[374664486,1753404654517,-460.0,0.00018786,2]
[374664487,1753404654527,-460.0,0.00018786,2]
[374664488,1753404654537,-826.24,0.00018786,2]
[374664489,1753404654547,-490.98,0.00018786,2]
[374664490,1753404654557,-707.1,0.00018786,2]
[374664491,1753404654567,-460.0,0.00018786,2]
[374664492,1753404654577,-460.0,0.00018786,2]
[374664493,1753404654587,-644.95,0.00018786,2]
[374664494,1753404654596,-510.83,0.00018786,2]
[374664495,1753404654606,-517.67,0.00018789,2]
[374664496,1753404654615,-288.51538864,0.00018789,2]
[374664497,1753404654626,-463.11174211,0.00018789,2]
[374664498,1753404654637,-460.0,0.00018789,2]
[374664499,1753404654647,-460.0,0.00018789,2]
[374664500,1753404654656,-411.92815145,0.00018789,2]
[374664501,1753404654666,-653.07,0.00018789,2]
[374664502,1753404654675,-460.0,0.00018789,2]
[374664503,1753404654685,-460.0,0.00018789,2]
[374664504,1753404654695,-617.41,0.00018789,2]
[374664505,1753404654705,-460.0,0.00018789,2]
[374664506,1753404654715,-741.91,0.00018789,2]
[374664507,1753404654725,-312.71270978,0.00018789,2]
[374664508,1753404654734,-460.0,0.00018789,2]
[374664509,1753404654744,-460.0,0.00018789,2]
[374664510,1753404654753,-460.0,0.00018789,2]
[374664511,1753404654763,-267.27214906,0.00018789,2]
[374664512,1753404654773,-460.0,0.00018789,2]
[374664513,1753404654783,-460.0,0.00018789,2]
[374664514,1753404654794,-460.0,0.00018789,2]
[374664515,1753404654804,-460.0,0.00018789,2]
[374664516,1753404654814,-460.0,0.00018789,2]
[374664517,1753404654824,-460.0,0.00018789,2]
[374664518,1753404654834,-460.0,0.00018789,2]
[374664519,1753404654844,-460.0,0.00018789,2]
[374664520,1753404654854,-467.04374256,0.00018789,2]
[374664521,1753404654864,-460.0,0.00018789,2]
[374664522,1753404654873,-535.39,0.00018789,2]
[374664523,1753404654883,-460.0,0.00018789,2]
[374664524,1753404654893,-460.0,0.00018789,2]
[374664525,1753404654902,-906.7,0.00018789,2]
[374664526,1753404654913,-460.0,0.00018789,2]
[374664527,1753404654922,-460.0,0.00018789,2]
[374664528,1753404654932,-460.0,0.00018789,2]
[374664529,1753404654942,-500.0,0.00018789,2]
[374664530,1753404654953,-460.0,0.00018789,2]
[374664531,1753404654963,-460.0,0.00018789,2]
[374664532,1753404654973,-460.0,0.00018789,2]
[374664533,1753404654983,-460.0,0.00018789,2]
[374664534,1753404654993,-460.0,0.00018789,2]
[374664535,1753404655002,-348.8079486,0.00018789,2]
[374664536,1753404655012,-460.0,0.00018789,2]
[374664537,1753404655023,-460.0,0.00018789,2]
[374664538,1753404655032,-460.0,0.00018789,2]
[374664539,1753404655043,-460.0,0.00018789,2]
[374664540,1753404655052,-460.0,0.00018789,2]
[374664541,1753404655062,-460.0,0.00018789,2]
[374664542,1753404655071,-957.35,0.00018789,2]
[374664543,1753404655081,-460.0,0.00018791,2]
[374664544,1753404655091,-460.0,0.00018791,2]
[374664545,1753404655102,-460.0,0.00018791,2]
[374664546,1753404655112,-460.0,0.00018791,2]
[374664547,1753404655122,-460.0,0.00018791,2]
[374664548,1753404655131,-527.08,0.00018791,2]
[374664549,1753404655140,-460.0,0.00018791,2]
[374664550,1753404655150,-460.0,0.00018791,2]
[374664551,1753404655160,-460.0,0.00018791,2]
[374664552,1753404655169,-460.0,0.00018791,2]
[374664553,1753404655179,-460.0,0.00018791,2]
[374664554,1753404655189,-460.0,0.00018791,2]
[374664555,1753404655198,-460.0,0.00018791,2]
[374664556,1753404655208,-460.0,0.00018791,2]
[374664557,1753404655217,-460.0,0.00018791,2]
[374664558,1753404655227,-460.0,0.00018791,2]
[374664559,1753404655237,-460.0,0.00018791,2]
[374664560,1753404655247,-460.0,0.00018791,2]
[374664561,1753404655256,-460.0,0.00018791,2]
[374664562,1753404655266,-460.0,0.00018791,2]
[374664563,1753404655275,-641.51,0.00018791,2]
[374664564,1753404655284,-460.0,0.00018791,2]
[374664565,1753404655295,-517.5769565,0.00018791,2]
[374664566,1753404655304,-460.0,0.00018811,2]
[374664567,1753404655314,-460.0,0.00018811,2]
[374664568,1753404655323,-460.0,0.00018811,2]
[374664569,1753404655332,-460.0,0.00018811,2]
[374664570,1753404655342,-460.0,0.00018811,2]
[374664571,1753404655352,-460.0,0.00018811,2]
[374664572,1753404655362,-682.72,0.00018811,2]
[374664573,1753404655373,-879.04,0.00018811,2]
[374664574,1753404655383,-779.49,0.00018811,2]
[374664575,1753404655393,-460.0,0.00018811,2]
[374664576,1753404655405,-460.0,0.00018812,2]
[374664577,1753404655415,-223.23911968,0.00018812,2]
[374664578,1753404655426,-460.0,0.00018812,2]
[374664579,1753404655436,-460.0,0.00018812,2]
[374664580,1753404655447,-1883.51,0.00018812,2]
[374664581,1753404655457,-7566.41,0.00018812,2]
[374664582,1753404655468,-460.0,0.00018812,2]
[374664583,1753404655478,-460.0,0.00018812,2]
[374664584,1753404655489,-460.0,0.00018812,2]
[374664585,1753404655500,-699.86,0.00018812,2]
[374664586,1753404655510,-460.0,0.00018812,2]
[374664587,1753404655520,-1060.78,0.00018812,2]
[374664588,1753404655530,-460.0,0.00018812,2]
[374664589,1753404655540,-460.0,0.00018812,2]
[374664590,1753404655550,-460.0,0.00018812,2]
[374664591,1753404655559,-842.19,0.00018812,2]
[374664592,1753404655569,-3520.83,0.00018812,2]
[374664593,1753404655578,-2764.23,0.00018812,2]
[374664594,1753404655587,-928.75,0.00018812,2]
[374664595,1753404655598,-460.0,0.00018812,2]
[374664596,1753404655607,-460.0,0.00018812,2]
[374664597,1753404655617,-2372.12,0.00018812,2]
[374664598,1753404655629,-460.0,0.00018812,2]
[374664599,1753404655639,-465.61191937,0.00018812,2]
[374664600,1753404655649,-882.42,0.00018812,2]
[374664601,1753404655658,-1124.3,0.00018812,2]
[374664602,1753404655668,-176.26393712,0.00018812,2]
[374664603,1753404655679,-460.0,0.00018812,2]
[374664604,1753404655688,-460.0,0.00018818,2]
[374664605,1753404655698,-460.0,0.00018818,2]
[374664606,1753404655711,-460.0,0.00018818,2]
[374664607,1753404655721,-460.0,0.00018818,2]
[374664608,1753404655730,-460.0,0.00018818,2]
[374664609,1753404655740,-460.0,0.00018818,2]
[374664610,1753404655750,-460.0,0.00018818,2]
[374664611,1753404655759,-485.64,0.00018818,2]
[374664612,1753404655770,-761.78,0.00018818,2]
[374664613,1753404655779,-460.0,0.00018818,2]
[374664614,1753404655790,-622.1,0.00018818,2]
[374664615,1753404655800,-460.0,0.00018818,2]
[374664616,1753404655810,-460.0,0.00018818,2]
[374664617,1753404655819,-460.0,0.00018818,2]
[374664618,1753404655829,-839.58,0.00018818,2]
[374664619,1753404655839,-678.17,0.00018818,2]
[374664620,1753404655848,-460.0,0.00018818,2]
[374664621,1753404655858,-389.09419639,0.00018818,2]
[374664622,1753404655867,-460.0,0.00018818,2]
[374664623,1753404655877,-576.16,0.00018818,2]
[374664624,1753404655887,-765.08,0.00018818,2]
[374664625,1753404655897,-1116.47,0.00018818,2]
[374664626,1753404655907,-784.01,0.00018818,2]
[374664627,1753404655916,-578.8,0.00018818,2]
[374664628,1753404655926,-451.66018113,0.00018818,2]
[374664629,1753404655936,-460.0,0.00018818,2]
[374664630,1753404655946,-460.0,0.00018818,2]
[374664631,1753404655956,-124.52019922,0.00018818,2]
[374664632,1753404656292,-147.53090591,0.00018818,2]
[374664633,1753404656303,-460.0,0.00018818,2]
[374664634,1753404656313,-793.28,0.00018819,2]
[374664635,1753404656322,-760.23,0.00018819,2]
[374664636,1753404656332,-460.0,0.00018819,2]
[374664637,1753404656342,-460.0,0.00018819,2]
[374664638,1753404656354,-460.0,0.00018819,2]
[374664639,1753404656364,-460.0,0.00018819,2]
[374664640,1753404656374,-460.0,0.00018819,2]
[374664641,1753404656384,-967.47,0.00018819,2]
[374664642,1753404656394,-1315.09,0.00018819,2]
[374664643,1753404656404,-460.0,0.00018819,2]
[374664644,1753404656414,-460.0,0.00018819,2]
[374664645,1753404656423,-460.0,0.00018819,2]
[374664646,1753404656433,-1001.06,0.00018819,2]
[374664647,1753404656443,-1087.93,0.00018819,2]
[374664648,1753404656453,-1406.67,0.00018819,2]
[374664649,1753404656463,-460.0,0.00018819,2]
[374664650,1753404656472,-460.0,0.00018819,2]
[374664651,1753404656482,-500.0,0.0001882,2]
[374664652,1753404656491,-787.51785046,0.00018821,2]
[374664653,1753404656500,-1062.50628393,0.00018821,2]
[374664654,1753404656510,-1000.0,0.00018821,2]
[374664655,1753404656520,-760.88965729,0.00018821,2]
[374664656,1753404656529,-1000.0,0.00018821,2]
[374664657,1753404656538,-1000.0,0.00018821,2]
[374664658,1753404656548,-1000.0,0.00018821,2]
[374664659,1753404656558,-1000.0,0.00018821,2]
[374664660,1753404656567,-1000.0,0.00018821,2]
[374664661,1753404656577,-508.41565789,0.00018821,2]
[374664662,1753404656586,-1000.0,0.00018821,2]
[374664663,1753404656595,-644.41181759,0.00018821,2]
[374664664,1753404656605,-880.07545794,0.00018821,2]
[374664665,1753404656615,-500.0,0.00018821,2]
[374664666,1753404656624,-1000.0,0.00018821,2]
[374664667,1753404656637,-318.81973455,0.00018821,2]
[374664668,1753404656648,-1000.0,0.00018821,2]
[374664669,1753404656658,-243.67576982,0.00018821,2]
[374664670,1753404656668,-1000.0,0.00018821,2]
[374664671,1753404656678,-1000.0,0.00018821,2]
[374664672,1753404656687,-328.94771973,0.00018821,2]
[374664673,1753404656697,-1144.15542662,0.00018821,2]
[374664674,1753404656707,-1000.0,0.00018821,2]
[374664675,1753404656716,-1000.0,0.00018821,2]
[374664676,1753404656726,-1000.0,0.00018821,2]
[374664677,1753404656736,-1000.0,0.00018821,2]
[374664678,1753404656745,-500.0,0.00018821,2]
[374664679,1753404656754,-1001.75646865,0.00018821,2]
[374664680,1753404656765,-460.0,0.00018821,2]
[374664681,1753404656778,-460.0,0.00018821,2]
[374664682,1753404656789,-460.0,0.00018821,2]
[374664683,1753404656800,-460.0,0.00018821,2]
[374664684,1753404656809,-460.0,0.00018821,2]
[374664685,1753404656821,-460.0,0.00018821,2]
[374664686,1753404656830,-460.0,0.00018821,2]
[374664687,1753404656840,-460.0,0.00018821,2]
[374664688,1753404656849,-460.0,0.00018821,2]
[374664689,1753404656858,-460.0,0.00018821,2]
[374664690,1753404656868,-629.7,0.00018821,2]
[374664691,1753404656879,-460.0,0.00018821,2]
[374664692,1753404656892,-689.38,0.00018821,2]
[374664693,1753404656904,-460.0,0.00018821,2]
[374664694,1753404656914,-576.92,0.00018821,2]
[374664695,1753404656923,-460.0,0.00018821,2]
[374664696,1753404656933,-472.62920373,0.00018821,2]
[374664697,1753404656942,-570.09,0.00018821,2]
[374664698,1753404656951,-460.0,0.00018821,2]
[374664699,1753404656961,-460.0,0.00018821,2]
[374664700,1753404656970,-612.95,0.00018821,2]
[374664701,1753404656980,-865.33,0.00018821,2]
[374664702,1753404656991,-460.0,0.00018821,2]
[374664703,1753404657002,-460.0,0.00018821,2]
[374664704,1753404657011,-460.0,0.00018821,2]
[374664705,1753404657021,-520.64,0.00018821,2]
[374664706,1753404657031,-460.0,0.00018821,2]
[374664707,1753404657041,-460.0,0.00018821,2]
[374664708,1753404657051,-460.0,0.00018821,2]
[374664709,1753404657060,-1299.12,0.00018821,2]
[374664710,1753404657070,-923.5,0.00018821,2]
[374664711,1753404657080,-460.0,0.00018821,2]
[374664712,1753404657090,-460.0,0.00018821,2]
[374664713,1753404657099,-557.84,0.00018821,2]
[374664714,1753404657109,-1065.37,0.00018821,2]
[374664715,1753404657119,-460.0,0.00018821,2]
[374664716,1753404657129,-460.0,0.00018821,2]
[374664717,1753404657138,-594.76,0.00018821,2]
[374664718,1753404657148,-460.0,0.00018821,2]
[374664719,1753404657158,-460.0,0.00018821,2]
[374664720,1753404657167,-460.0,0.00018821,2]
[374664721,1753404657177,-460.0,0.00018821,2]
[374664722,1753404657187,-729.45,0.00018821,2]
[374664723,1753404657196,-460.0,0.00018821,2]
[374664724,1753404657206,-1290.64,0.00018821,2]
[374664725,1753404657215,-460.0,0.00018821,2]
[374664726,1753404657225,-460.0,0.00018821,2]
[374664727,1753404657235,-460.0,0.00018821,2]
[374664728,1753404657244,-460.0,0.00018821,2]
[374664729,1753404657254,-460.0,0.00018821,2]
[374664730,1753404657263,-460.0,0.00018821,2]
[374664731,1753404657273,-587.44,0.00018821,2]